bitfinex-derivatives/quotes_SOLF0:USTF0_20250830
["timestamp","ask_amount","ask_price","bid_price","bid_amount"]
[1756578858918,456.12,201.02,200.95,1.99831335]
[1756578859114,7.51,200.95,200.88,9.38831335]
[1756578859316,7.51,200.95,200.88,13.51633463]
[1756578859521,7.51,200.95,200.88,9.38831335]
[1756578861331,7.51,200.95,200.88,13.51633463]
[1756578861526,7.51,200.95,200.88,9.38831335]
[1756578862325,7.51,200.95,200.88,13.51633463]
[1756578862826,7.51,200.95,200.88,9.38831335]
[1756578863323,7.51,200.95,200.88,13.51633463]
[1756578864726,7.51,200.95,200.88,9.38831335]
[1756578865823,7.51,200.95,200.89,7.39]
[1756578866125,9.50831335,200.96,200.9,9.38831335]
[1756578866629,7.51,200.99,200.93,7.39]
[1756578866828,1.99831335,201.0,200.94,1.99831335]
[1756578867025,7.51,200.99,200.94,9.38831335]
[1756578867225,1.99831335,201.0,200.94,9.38831335]
[1756578867226,9.50831335,201.0,200.94,9.38831335]
[1756578867629,7.51,201.0,200.94,9.38831335]
[1756578869126,7.51,201.0,200.97,7.39]
[1756578870634,1.99831335,201.01,200.96,9.38831335]
[1756578871228,7.51,201.0,200.96,9.38831335]
[1756578871429,1.99831335,200.97,200.91,11.51802128]
[1756578871731,7.51,200.96,200.9,9.38831335]
[1756578873536,7.51,201.0,200.94,1.99831335]
[1756578873736,1.99831335,201.0,200.94,1.99831335]
[1756578873935,7.51,200.99,200.94,1.99831335]
[1756578874139,7.51,200.99,200.93,1.99831335]
[1756578876841,7.51,201.01,200.98,7.39]
[1756578877238,7.51,201.01,200.95,1.99831335]
[1756578880245,7.51,200.99,200.94,7.86]
[1756578880645,1.99831335,201.0,200.94,7.86]
[1756578880847,7.51,200.99,200.94,7.86]
[1756578881041,1.99831335,201.0,200.94,7.86]
[1756578881436,7.51,200.99,200.94,7.86]
[1756578882046,9.50831335,201.0,200.93,9.85831335]
[1756578887651,7.51,200.95,200.88,7.86]
[1756578887847,1.99831335,200.94,200.88,7.86]
[1756578889242,1.99831335,200.92,200.86,4.15183799]
[1756578889449,7.51,200.93,200.84,7.86]
[1756578890946,7.51,200.9,200.81,7.86]
[1756578891450,7.51,200.9,200.82,7.86]
[1756578903267,7.51,200.9,200.79,12.01183799]
[1756578903563,3.12243386,200.91,200.79,12.01183799]
[1756578904364,7.51,200.9,200.79,12.01183799]
[1756578904567,3.12243386,200.91,200.79,12.01183799]
[1756578905367,7.51,200.87,200.79,7.86]
[1756578908168,3.12243386,201.0,200.81,7.36]
[1756578908169,7.86,200.91,200.81,7.36]
[1756578908371,7.86,200.91,200.83,3.12243386]
[1756578908569,7.86,200.91,200.83,10.48243386]
[1756578908968,7.86,200.91,200.83,7.36]
[1756578909371,1.99875864,200.9,200.83,9.35875864]
[1756578909569,1.99875864,200.9,200.83,7.36]
[1756578909772,1.99875864,200.9,200.83,9.35875864]
[1756578910067,1.99875864,200.88,200.83,7.36]
[1756578910271,7.86,200.87,200.83,7.36]
[1756578910668,1.99875864,200.88,200.83,7.36]
[1756578910869,7.86,200.87,200.83,7.36]
[1756578911068,1.99875864,200.88,200.83,7.36]
[1756578911264,7.86,200.87,200.83,7.36]
[1756578911469,7.86,200.89,200.83,7.36]
[1756578911872,3.12373415,200.87,200.78,7.36]
[1756578912073,7.86,200.86,200.78,7.36]
[1756578916274,7.86,200.84,200.78,7.36]
[1756578920671,32.32373415,200.88,200.78,7.36]
[1756578921680,10.98373415,200.88,200.78,7.36]
[1756578923083,10.98373415,200.88,200.79,7.36]
[1756578924678,7.86,200.97,200.81,3.12373415]
[1756578924882,7.86,200.94,200.82,7.36]
[1756578925083,7.86,200.94,200.85,7.36]
[1756578925682,7.86,200.94,200.79,7.36]
[1756578925884,7.86,200.89,200.79,7.36]
[1756578928082,7.86,200.83,200.75,11.51183799]
[1756578928280,7.86,200.83,200.75,7.36]
[1756578932582,3.12373415,200.84,200.75,7.36]
[1756578932779,10.98373415,200.84,200.75,11.51183799]
[1756578933090,10.98373415,200.84,200.75,7.36]
[1756578933891,7.86,200.84,200.75,7.36]
[1756578937486,7.86,200.84,200.75,11.52203411]
[1756578940102,7.86,200.84,200.75,14.64576826]
[1756578940593,7.86,200.84,200.76,7.46]
[1756578940796,7.35,200.92,200.78,3.12373415]
[1756578941095,7.35,200.9,200.79,11.62203411]
[1756578941298,7.35,200.9,200.8,7.46]
[1756578941793,7.35,200.9,200.82,7.46]
[1756578942800,7.35,200.9,200.84,3.12373415]
[1756578943000,7.35,200.93,200.87,3.12373415]
[1756578943300,7.35,200.93,200.87,10.58373415]
[1756578945998,7.35,200.93,200.85,3.12373415]
[1756578948100,7.35,200.93,200.86,7.46]
[1756578949603,7.35,200.93,200.86,10.58373415]
[1756578950200,7.35,200.93,200.87,7.46]
[1756578957413,7.35,200.97,200.87,7.46]
[1756578957809,7.35,200.97,200.89,3.12373415]
[1756578958008,7.35,200.97,200.89,10.58373415]
[1756578959517,7.35,200.97,200.89,7.46]
[1756578959715,7.35,200.97,200.89,10.58373415]
[1756578960911,7.35,201.01,200.93,7.46]
[1756578965520,7.35,200.97,200.85,7.46]
[1756578965719,7.35,200.97,200.86,7.46]
[1756578968722,7.35,200.97,200.91,3.12373415]
[1756578968923,3.12373415,201.01,200.91,3.12373415]
[1756578969118,7.52,201.0,200.92,7.5]
[1756578971623,7.52,201.0,200.94,3.12373415]
[1756578971927,7.52,201.0,200.95,7.5]
[1756578972122,3.12373415,201.04,200.95,7.5]
[1756578972328,10.64373415,201.04,200.95,7.5]
[1756578973927,7.52,200.97,200.88,3.12373415]
[1756578974230,7.52,200.97,200.87,7.5]
[1756578974618,7.52,200.97,200.87,10.62373415]
[1756578974818,7.52,200.97,200.88,7.5]
[1756578980230,7.52,201.0,200.9,7.5]
[1756578981325,7.52,201.0,200.93,7.5]
[1756578984226,7.52,201.08,201.0,7.5]
[1756578984428,7.52,201.08,201.01,3.12373415]
[1756578984822,7.52,201.08,201.0,7.5]
[1756578987427,7.52,201.08,201.01,3.12373415]
[1756578991535,7.52,201.08,201.0,7.5]
[1756578994629,7.52,201.08,201.0,10.62373415]
[1756578996132,7.52,201.08,201.0,7.5]
[1756579000636,7.52,201.08,201.03,7.36]
[1756579000938,7.52,201.08,201.02,3.12373415]
[1756579001133,7.7,201.13,201.03,7.36]
[1756579002842,3.12373415,201.12,201.03,7.36]
[1756579003142,7.7,201.11,201.03,7.36]
[1756579007744,7.7,201.11,201.05,7.36]
[1756579015854,7.7,201.16,201.05,7.36]
[1756579016050,7.7,201.16,201.08,7.36]
[1756579017854,7.7,201.16,201.05,7.36]
[1756579024669,7.7,201.13,201.05,7.36]
[1756579027166,3.12373415,201.11,201.02,4.15697491]
[1756579027368,7.94,201.1,201.01,7.36]
[1756579031382,3.12373415,201.08,201.01,7.36]
[1756579031583,7.94,201.07,201.01,7.36]
[1756579032685,7.94,201.05,200.98,7.67]
[1756579036790,11.06373415,201.08,200.98,7.67]
[1756579042389,11.06373415,201.08,200.99,7.67]
[1756579043187,7.94,201.08,201.01,3.12373415]
[1756579043393,11.06373415,201.11,201.02,7.67]
[1756579044395,7.94,201.11,201.02,7.67]
[1756579045492,46.46,201.15,201.05,7.67]
[1756579045493,7.94,201.15,201.05,7.67]
[1756579047295,7.94,201.15,201.07,3.12373415]
[1756579047593,7.94,201.18,201.08,7.67]
[1756579047890,7.94,201.18,201.11,7.67]
[1756579049698,350.50373415,201.22,201.11,7.67]
[1756579049894,350.50373415,201.22,201.13,3.12373415]
[1756579050094,350.50373415,201.22,201.14,7.67]
[1756579053190,347.38,201.22,201.14,7.67]
[1756579071206,12.94,201.22,201.16,3.12373415]
[1756579071406,7.54,201.2,201.17,8.08]
[1756579076210,121.64,201.21,201.17,8.08]
[1756579076406,7.54,201.2,201.17,8.08]
[1756579076603,121.64,201.21,201.08,104.39238787]
[1756579076807,7.54,201.2,201.13,3.12373415]
[1756579079208,7.54,201.2,201.14,8.08]
[1756579081914,7.54,201.15,201.05,8.08]
[1756579082109,129.16,201.15,201.05,8.08]
[1756579082816,7.54,201.12,201.04,3.12373415]
[1756579083113,7.54,201.12,201.02,8.08]
[1756579094021,8.07,201.09,200.99,4.15697491]
[1756579094221,8.07,201.09,200.98,7.88]
[1756579101028,3.12373415,201.07,200.98,7.88]
[1756579101230,8.07,201.06,200.98,7.88]
[1756579105232,3.12373415,201.04,200.94,7.88]
[1756579105434,3.12373415,201.01,200.9,7.88]
[1756579105634,3.12373415,200.98,200.9,7.88]
[1756579105832,8.07,200.97,200.9,7.88]
[1756579112452,8.07,200.97,200.87,3.12373415]
[1756579112453,8.07,200.97,200.83,7.88]
[1756579112652,8.07,200.94,200.84,7.88]
[1756579112846,8.07,200.91,200.84,7.88]
[1756579115457,8.07,200.91,200.8,7.88]
[1756579116755,7.96979006,200.91,200.8,7.88]
[1756579128568,7.44,200.88,200.8,7.88]
[1756579128754,7.44,200.94,200.84,3.12373415]
[1756579128953,7.44,200.94,200.85,7.82]
[1756579134160,7.44,200.94,200.88,7.82]
[1756579144271,7.44,200.97,200.89,7.82]
[1756579145970,10.56373415,201.0,200.92,7.82]
[1756579147574,7.44,201.0,200.92,7.82]
[1756579152681,7.5,200.97,200.89,7.72]
[1756579167990,7.5,200.97,200.9,7.72]
[1756579168193,7.5,201.04,200.94,3.12373415]
[1756579168492,7.5,201.04,200.95,7.72]
[1756579169890,7.5,201.07,200.98,7.72]
[1756579173292,7.5,201.07,200.98,10.84373415]
[1756579176502,7.5,201.07,200.98,3.12373415]
[1756579176699,7.5,201.07,200.99,7.72]
[1756579177198,334.26,201.09,200.99,7.72]
[1756579177396,7.49,201.08,201.02,8.02]
[1756579181603,129.17,201.11,201.02,8.02]
[1756579183501,129.17,201.11,201.05,8.02]
[1756579187009,7.49,201.1,201.01,11.14373415]
[1756579187206,7.49,201.1,201.02,8.02]
[1756579193621,7.49,201.1,201.04,3.12373415]
[1756579193924,7.49,201.1,201.04,11.14373415]
[1756579204432,7.49,201.13,201.05,8.02]
[1756579204628,129.09,201.13,201.07,3.12373415]
[1756579204833,121.6,201.13,201.07,3.12373415]
[1756579205029,121.6,201.13,201.01,4.15697491]
[1756579205030,7.49,201.12,201.01,4.15697491]
[1756579205230,124.72373415,201.13,201.02,11.14373415]
[1756579205533,7.49,201.12,201.03,8.02]
[1756579218244,7.49,201.12,201.03,4.15697491]
[1756579218446,7.49,201.12,201.04,4.15697491]
[1756579218646,7.49,201.12,201.05,7.88]
[1756579220143,7.49,201.12,201.06,7.88]
[1756579220951,121.56,201.16,201.06,7.88]
[1756579221246,7.86,201.15,201.07,4.15697491]
[1756579221445,7.86,201.15,201.08,7.88]
[1756579223349,7.86,201.19,201.09,7.88]
[1756579225054,7.86,201.19,201.1,7.88]
[1756579241160,7.47,201.13,201.07,7.99]
[1756579241360,7.47,201.1,201.07,7.99]
[1756579241658,7.47,201.1,201.05,7.99]
[1756579241860,1.99459108,201.11,201.04,6.15156599]
[1756579242058,7.47,201.08,201.03,4.15697491]
[1756579242357,7.47,201.08,200.98,8.3022745]
[1756579242358,1.99459108,201.05,201.02,7.99]
[1756579242563,9.46459108,201.05,201.02,7.99]
[1756579243365,7.47,201.05,201.02,7.99]
[1756579243662,22.09,201.08,201.0,4.15697491]
[1756579243864,7.47,201.05,200.98,7.99]
[1756579251773,7.47,201.08,200.98,7.99]
[1756579252076,7.47,201.08,200.99,7.99]
[1756579260273,35.24,201.11,200.95,5.53484967]
[1756579260274,7.47,201.05,200.96,7.99]
[1756579260582,7.47,201.02,200.96,7.99]
[1756579262275,3.11807493,201.0,200.92,7.99]
[1756579262481,7.47,200.99,200.92,7.99]
[1756579266186,3.11807493,200.97,200.88,12.14466783]
[1756579266387,7.47,200.96,200.88,7.99]
[1756579268188,3.11807493,200.94,200.82,4.15466783]
[1756579268489,7.76,200.93,200.83,7.33]
[1756579269485,3.11807493,200.91,200.83,7.33]
[1756579269886,7.76,200.9,200.83,7.33]
[1756579271991,3.11807493,200.88,200.77,4.15466783]
[1756579272191,7.76,200.87,200.78,7.33]
[1756579273684,3.11807493,200.85,200.78,7.33]
[1756579273894,7.76,200.84,200.78,7.33]
[1756579274597,7.76,200.84,200.74,7.33]
[1756579274895,10.48,200.87,200.74,7.33]
[1756579274896,7.76,200.81,200.74,7.33]
[1756579279792,42.7,200.85,200.74,7.33]
[1756579279998,3.11807493,200.83,200.74,7.33]
[1756579287101,7.76,200.82,200.74,7.33]
[1756579289500,59.05807493,200.85,200.74,7.33]
[1756579291909,10.87807493,200.85,200.74,7.33]
[1756579292700,7.76,200.85,200.74,7.33]
[1756579295799,10.87807493,200.85,200.74,7.33]
[1756579296005,7.76,200.85,200.74,7.33]
[1756579296201,7.76,200.85,200.75,3.11807493]
[1756579296405,7.76,200.85,200.76,7.33]
[1756579298709,10.87807493,200.85,200.76,7.33]
[1756579300110,7.76,200.85,200.76,7.33]
[1756579300411,7.76,200.85,200.78,7.78]
[1756579302005,10.73807493,200.88,200.78,7.78]
[1756579302407,7.62,200.88,200.78,7.78]
[1756579312216,7.62,200.88,200.78,11.93466783]
[1756579312429,7.62,200.88,200.79,7.78]
[1756579313519,7.62,200.86,200.79,7.78]
[1756579315124,7.62,200.86,200.8,7.78]
[1756579325536,7.62,200.86,200.8,7.27274276]
[1756579325937,7.62,200.9,200.81,7.78]
[1756579329135,3.11807493,200.88,200.78,11.72466783]
[1756579329525,7.57,200.87,200.78,11.72466783]
[1756579329730,3.11807493,200.88,200.78,4.15466783]
[1756579329936,7.57,200.87,200.79,7.57]
[1756579331835,7.57,200.87,200.79,11.72466783]
[1756579332334,3.11807493,200.88,200.79,11.72466783]
[1756579332831,7.57,200.87,200.79,11.72466783]
[1756579333230,3.11807493,200.88,200.79,11.72466783]
[1756579333839,7.57,200.87,200.79,11.72466783]
[1756579337436,9.56944405,200.88,200.82,1.99944405]
[1756579337635,9.56944405,200.88,200.83,7.57]
[1756579337839,9.56944405,200.88,200.82,9.56944405]
[1756579338138,9.56944405,200.88,200.82,7.57]
[1756579339344,7.57,200.88,200.82,7.57]
[1756579341443,3.12409857,200.86,200.8,4.15466783]
[1756579341634,3.12409857,200.83,200.77,4.15466783]
[1756579342134,7.57,200.82,200.77,4.15466783]
[1756579342337,3.12409857,200.83,200.77,4.15466783]
[1756579342843,7.57,200.82,200.76,4.15466783]
[1756579343645,7.57,200.82,200.75,11.72466783]
[1756579343845,7.57,200.82,200.75,7.57]
[1756579343846,3.12409857,200.8,200.75,7.57]
[1756579344046,7.57,200.79,200.75,7.57]
[1756579344444,3.12409857,200.8,200.75,7.57]
[1756579344743,3.12409857,200.8,200.74,4.15466783]
[1756579345142,7.57,200.79,200.73,4.15466783]
[1756579346643,3.12409857,200.8,200.74,7.57]
[1756579347948,10.69409857,200.8,200.74,7.57]
[1756579351258,10.69409857,200.8,200.71,11.72466783]
[1756579351459,7.57,200.79,200.71,11.72466783]
[1756579351745,7.57,200.79,200.71,7.57]
[1756579351954,7.57,200.79,200.72,7.57]
[1756579354546,7.57,200.87,200.72,7.57]
[1756579354754,3.12409857,200.8,200.73,7.57]
[1756579355060,7.57,200.79,200.73,7.57]
[1756579363565,2.00113065,200.78,200.72,7.95]
[1756579365167,7.98,200.77,200.72,7.95]
[1756579365467,7.98,200.75,200.69,12.10466783]
[1756579365768,7.98,200.73,200.7,7.95]
[1756579366167,7.98,200.73,200.68,6.15579848]
[1756579366364,7.98,200.73,200.69,7.95]
[1756579367463,7.98,200.73,200.68,4.15466783]
[1756579368262,7.98,200.73,200.69,7.95]
[1756579368462,7.98,200.73,200.68,4.15466783]
[1756579368770,11.10789819,200.77,200.69,7.95]
[1756579370568,7.98,200.73,200.65,12.10466783]
[1756579370770,7.98,200.73,200.66,7.95]
[1756579382978,7.98,200.77,200.67,7.95]
[1756579383176,7.98,200.77,200.7,7.95]
[1756579386582,11.10789819,200.77,200.68,4.15466783]
[1756579387379,11.10789819,200.77,200.69,4.15466783]
[1756579389080,7.4,200.73,200.67,4.15466783]
[1756579389280,7.4,200.73,200.66,4.15466783]
[1756579390270,7.4,200.73,200.65,4.15466783]
[1756579391583,7.4,200.7,200.64,4.15466783]
[1756579393385,7.4,200.7,200.63,4.15466783]
[1756579394082,7.4,200.7,200.62,4.15466783]
[1756579394280,3.12789819,200.68,200.61,11.99466783]
[1756579394480,7.4,200.67,200.61,11.99466783]
[1756579394677,7.4,200.67,200.61,4.15466783]
[1756579394882,7.4,200.64,200.58,4.15466783]
[1756579396290,7.4,200.64,200.58,11.99466783]
[1756579397179,7.4,200.64,200.58,7.84]
[1756579398279,10.52789819,200.64,200.55,7.84]
[1756579412189,7.4,200.64,200.55,3.12789819]
[1756579412395,7.4,200.64,200.56,7.84]
[1756579416689,334.86,200.75,200.61,3.12789819]
[1756579416899,7.4,200.71,200.62,7.84]
[1756579422395,7.4,200.71,200.64,3.12789819]
[1756579422600,345.97789819,200.75,200.65,8.03]
[1756579423496,7.99,200.75,200.67,3.12789819]
[1756579423702,7.99,200.75,200.68,8.03]
[1756579426709,7.99,200.82,200.71,8.03]
[1756579426903,11.11789819,200.82,200.71,8.03]
[1756579429308,11.11789819,200.82,200.73,3.12789819]
[1756579429708,11.11789819,200.82,200.74,8.03]
[1756579430106,7.99,200.87,200.79,3.12789819]
[1756579430306,7.99,200.87,200.8,8.03]
[1756579432308,7.99,200.92,200.83,8.03]
[1756579436215,7.99,200.92,200.83,11.15789819]
[1756579441211,7.99,200.92,200.83,3.12789819]
[1756579441414,7.99,200.92,200.84,8.03]
[1756579450218,7.99,200.92,200.85,3.12789819]
[1756579451419,7.99,200.92,200.86,7.74]
[1756579461724,7.65,200.96,200.86,7.74]
[1756579462028,7.65,200.96,200.89,7.74]
[1756579463835,342.53,200.99,200.92,7.74]
[1756579465934,7.65,200.99,200.92,7.74]
[1756579467934,7.65,200.98,200.87,3.12789819]
[1756579468235,3.12789819,200.93,200.87,7.74]
[1756579468435,7.65,200.92,200.84,7.74]
[1756579474937,7.65,200.92,200.85,7.74]
[1756579476241,7.65,200.92,200.85,11.89466783]
[1756579477442,3.12789819,200.93,200.85,11.89466783]
[1756579477634,7.87,200.92,200.85,11.89466783]
[1756579477837,7.87,200.92,200.85,7.74]
[1756579479447,7.87,200.92,200.85,11.89466783]
[1756579481139,7.87,200.97,200.87,3.12789819]
[1756579481346,7.87,201.01,200.94,7.55]
[1756579484145,7.87,201.01,200.94,11.70466783]
[1756579485048,7.87,201.01,200.93,4.15466783]
[1756579485248,7.87,200.99,200.91,7.55]
[1756579488245,32.25,201.04,200.96,7.55]
[1756579490548,7.87,201.02,200.92,4.15466783]
[1756579490747,7.87,201.02,200.93,7.55]
[1756579498254,7.87,201.02,200.94,3.12789819]
[1756579498461,7.87,201.02,200.95,7.55]
[1756579503163,7.87,201.02,200.95,3.12789819]
[1756579503465,456.08,201.05,200.96,7.55]
[1756579503664,463.95,201.05,200.96,7.55]
[1756579506663,342.37,201.05,200.96,7.55]
[1756579506855,463.87,201.05,200.96,7.55]
[1756579509459,342.37,201.05,200.98,3.12789819]
[1756579509663,7.87,201.05,200.99,7.35]
[1756579511666,7.48,201.1,200.99,7.35]
[1756579511966,7.48,201.1,201.02,7.35]
[1756579522281,7.48,201.1,201.03,7.35]
[1756579531190,7.48,201.14,201.03,7.35]
[1756579531383,10.60789819,201.14,201.03,7.35]
[1756579532686,10.60789819,201.14,201.02,7.29336786]
[1756579532687,3.12789819,201.11,201.0,11.51546967]
[1756579532887,3.12789819,201.08,201.0,7.35]
[1756579533087,7.48,201.07,201.0,7.35]
[1756579538000,7.5,201.1,201.01,7.82]
[1756579538188,7.5,201.1,201.01,4.16546967]
[1756579538491,7.5,201.1,201.02,11.98546967]
[1756579538697,7.5,201.1,201.03,7.82]
[1756579539894,7.5,201.1,201.01,4.16546967]
[1756579540097,357.04560704,201.17,200.99,7.82]
[1756579540098,3.12789819,201.05,200.99,7.82]
[1756579540400,7.5,201.04,200.97,7.82]
[1756579540603,7.5,201.04,200.97,4.16546967]
[1756579540795,7.5,201.04,200.98,7.82]
[1756579543700,7.5,201.01,200.98,7.82]
[1756579543900,3.12789819,201.02,200.98,7.82]
[1756579544201,7.5,201.01,200.95,11.98546967]
[1756579545705,7.5,201.01,200.95,7.82]
[1756579547303,3.12789819,201.05,200.97,7.82]
[1756579547502,7.5,201.04,200.97,7.82]
[1756579548704,3.12789819,201.02,200.97,7.82]
[1756579548898,7.5,201.01,200.97,7.82]
[1756579549401,7.5,201.01,200.96,7.82]
[1756579549606,7.5,201.01,200.95,4.16546967]
[1756579550502,7.5,201.01,200.96,7.82]
[1756579550799,10.62789819,201.05,200.96,11.98546967]
[1756579551005,10.62789819,201.05,200.97,7.82]
[1756579551203,10.62789819,201.05,200.97,11.98546967]
[1756579551405,7.5,201.05,200.99,7.82]
[1756579553708,7.5,201.05,200.99,11.98546967]
[1756579554107,7.5,201.08,201.0,7.82]
[1756579554307,7.5,201.08,201.02,7.82]
[1756579556307,7.5,201.08,201.02,11.98546967]
[1756579556604,7.5,201.08,201.03,7.82]
[1756579557004,7.5,201.11,201.03,7.82]
[1756579559109,10.62789819,201.11,201.03,7.82]
[1756579559310,7.5,201.11,201.03,7.82]
[1756579559506,7.5,201.11,201.04,11.98546967]
[1756579559708,7.5,201.11,201.05,7.82]
[1756579560209,7.5,201.11,201.05,11.98546967]
[1756579560910,7.5,201.11,201.05,7.82]
[1756579561307,3.12789819,201.13,201.05,7.82]
[1756579561712,7.5,201.12,201.05,7.82]
[1756579561913,3.12789819,201.1,201.05,7.82]
[1756579562314,7.5,201.09,201.01,7.82]
[1756579563516,7.5,201.12,201.01,7.82]
[1756579563719,7.5,201.12,201.02,7.82]
[1756579564016,10.62789819,201.12,201.02,7.82]
[1756579569813,342.02555322,201.17,201.02,7.82]
[1756579569814,8.12,201.08,201.02,7.82]
[1756579570013,3.12789819,201.06,200.97,13.57484967]
[1756579570213,3.12789819,201.1,200.97,8.04]
[1756579570214,3.12789819,201.03,200.97,8.04]
[1756579570721,8.12,201.03,200.97,8.04]
[1756579573318,8.12,201.13,200.97,8.04]
[1756579573525,11.24789819,201.08,200.97,8.04]
[1756579575026,11.24789819,201.08,200.98,8.04]
[1756579579235,11.24789819,201.08,200.99,3.12789819]
[1756579579435,8.12,201.08,201.0,8.04]
[1756579583838,8.12,201.08,201.01,3.12789819]
[1756579584938,8.12,201.08,201.0,11.16789819]
[1756579587238,3.12789819,201.11,201.0,11.16789819]
[1756579587439,8.12,201.1,201.0,8.04]
[1756579587640,3.12789819,201.08,201.0,8.04]
[1756579588042,8.12,201.07,201.0,8.04]
[1756579592145,8.12,201.07,200.97,8.04]
[1756579593645,8.12,201.07,200.97,13.57484967]
[1756579594040,8.12,201.07,200.98,8.04]
[1756579594246,8.12,201.07,200.99,8.04]
[1756579594451,8.12,201.07,201.0,8.04]
[1756579606553,8.12,201.07,200.98,8.66274786]
[1756579606750,7.92,201.04,200.97,5.53484967]
[1756579606951,3.12789819,201.02,200.94,7.47]
[1756579607151,7.92,201.01,200.94,7.47]
[1756579612359,3.12789819,201.02,200.92,96.18745045]
[1756579612558,7.92,201.01,200.92,96.18745045]
[1756579612859,7.92,201.01,200.92,103.65745045]
[1756579613456,7.92,201.01,200.93,7.47]
[1756579617464,7.92,201.01,200.95,7.47]
[1756579617666,7.92,201.04,200.95,7.47]
[1756579618063,7.92,201.04,200.98,7.47]
[1756579620369,7.92,201.04,200.97,3.12789819]
[1756579621873,7.92,201.04,200.95,7.47]
[1756579624970,3.12789819,201.08,200.97,3.12789819]
[1756579625276,5.54097856,201.13,200.95,7.47]
[1756579625277,7.92,201.1,201.01,7.47]
[1756579626167,7.92,201.1,201.03,3.12789819]
[1756579626470,7.92,201.1,201.03,10.59789819]
[1756579627572,22.8,201.16,201.07,7.45]
[1756579627573,7.52,201.16,201.07,7.45]
[1756579630180,7.52,201.16,201.09,3.12789819]
[1756579631274,7.52,201.16,201.07,7.45]
[1756579631472,7.52,201.16,201.06,3.12789819]
[1756579631976,7.52,201.16,201.06,10.57789819]
[1756579634378,7.52,201.16,201.09,3.12789819]
[1756579634575,7.52,201.16,201.1,7.45]
[1756579636778,7.52,201.21,201.13,7.45]
[1756579637873,7.52,201.21,201.15,3.12789819]
[1756579638274,7.52,201.21,201.1,3.12789819]
[1756579638480,7.52,201.21,201.1,10.57789819]
[1756579638682,5.0,201.22,201.1,10.57789819]
[1756579639785,7.52,201.21,201.1,10.57789819]
[1756579639979,7.52,201.21,201.11,7.45]
[1756579640184,7.52,201.21,201.13,3.12789819]
[1756579640387,7.52,201.21,201.11,7.45]
[1756579641989,5.0,201.22,201.11,0.5]
[1756579642287,5.0,201.22,201.21,7.45]
[1756579644187,0.86503685,201.34,201.21,7.95]
[1756579644400,7.52,201.33,201.25,3.12789819]
[1756579645488,7.52,201.33,201.28,3.12789819]
[1756579645688,11.74485412,201.37,201.28,10.57789819]
[1756579645885,7.52,201.35,201.28,3.12789819]
[1756579649196,7.52,201.35,201.24,7.45]
[1756579649395,7.52,201.35,201.27,3.12789819]
[1756579653504,7.52,201.35,201.27,7.45]
[1756579653704,7.52,201.35,201.28,3.12789819]